Cogmind - Beta 16 @@@ ROGUE MODE // 2025.11.15 @ 23:46:29 Player: dp-fld Result: Destroyed by G-67 Veteran with Plasma Rifle Performance ------------- Evolutions (4) 2000 Regions Visited (11) 2200 Robots Destroyed (164) 820 Value Destroyed (5681) 5681 Prototype IDs (30) 600 Alien Tech Used (0) 0 Bonus (1022) 1022 TOTAL SCORE: 12323 Bonus ------- High Alert Combat Kills 197 Follower Combat Kills 25 Registered with UFD 300 Met Optimus in HQ 500 Cogmind --------- Core Integrity 0/850 Matter 214/300 Energy 292/300 System Corruption 9% Temperature Cool (0) Movement Rolling (130) Ox2 Location -6/Lower Caves Parts ------- > --- POWER (1) -------- Angular Momentum Engine > --- PROPULSION (3) --- Armored Medium Treads (fused) Armored Huge Wheel > --- UTILITY (8) ------ Advanced Heat Sink Advanced Heat Sink High-capacity Storage Unit IFF Parser Advanced Targeting Computer Experimental Thermal Shield Experimental System Shield Mapping Drone Bay (1/3) > --- WEAPON (3) ------- Cooled Plasma Cannon Cooled Plasma Cannon > --- INVENTORY (20) --- Armored Medium Treads Advanced Visual Processing Unit Improved Sensor Array Advanced Signal Interpreter Advanced Terrain Scan Processor Advanced Dynamic Insulation System Advanced Dynamic Insulation System Advanced Dynamic Insulation System Cooled Plasma Cannon Cooled Plasma Cannon CPS Tube (2) CPS Tube (2) Power Sword Vortex Trap Peak State ------------ > --- POWER ------------ Light Antimatter Reactor > --- PROPULSION ------- Armored Medium Treads Armored Huge Wheel > --- UTILITY ---------- Advanced Heat Sink High-capacity Storage Unit IFF Parser Advanced Targeting Computer Powered Armor Experimental Thermal Shield Experimental Hacking Suite Experimental System Shield > --- WEAPON ----------- Cooled Plasma Cannon Cooled Plasma Cannon Power Sword > --- INVENTORY -------- Angular Momentum Engine Armored Medium Treads Armored Huge Wheel Advanced Heat Sink Advanced Visual Processing Unit Improved Sensor Array Advanced Signal Interpreter Advanced Terrain Scan Processor Layered Medium Armor Plating Advanced Dynamic Insulation System Advanced Dynamic Insulation System Advanced Dynamic Insulation System Mapping Drone Bay Cooled Plasma Cannon Cooled Plasma Cannon Improved Proton Missile Launcher CPS Tube CPS Tube Vortex Trap [Rating: 90] Favorites ----------- Power Cooled Ion Engine Engine Cooled Ion Engine Power Core Nuclear Core Reactor Light Antimatter Reactor Propulsion Armored Wheel Treads Light Treads Leg Aluminum Leg Wheel Armored Wheel Utility High-capacity Storage Unit Device Advanced Heat Sink Storage High-capacity Storage Unit Processor Advanced Targeting Computer Hackware Experimental System Shield Protection Hardened Light Armor Plating Weapon Cooled Plasma Cannon Energy Gun Medium Laser Energy Cannon Cooled Plasma Cannon Ballistic Gun Assault Rifle Ballistic Cannon Assault Cannon Launcher Improved Proton Missile Launcher Special Weapon Junk Cannon Slashing Weapon Katana Special Melee Weapon Datajack Build | -11 -10 -10 -9 -9 -9 -9 -6 -6 -6 -6 -6 ------- Run | Yrd Mat Min Mat Sto Rec Scr Fac Was Fac Low Low Slots Evolved 8 | . . . 2 . . . 6 . . . . Power . | . . . . . . . . . . . . Propulsion 1 | . . . 1 . . . . . . . . Utility 6 | . . . 1 . . . 5 . . . . Weapon 1 | . . . . . . . 1 . . . . Parts Attached 119 | 1 12 2 25 9 7 6 45 . 8 3 1 Power 13 | . 2 . 2 2 . 1 3 . 2 1 . Engine 7 | . 1 . . 2 . 1 2 . . 1 . Core 5 | . 1 . 2 . . . 1 . 1 . . Reactor 1 | . . . . . . . . . 1 . . Propulsion 26 | . 5 . 8 2 1 2 6 . 1 . 1 Treads 16 | . 4 . 6 1 . 1 4 . . . . Leg . | . . . . . . . . . . . . Wheel 10 | . 1 . 2 1 1 1 2 . 1 . 1 Hover . | . . . . . . . . . . . . Flight . | . . . . . . . . . . . . Utility 49 | 1 2 . 7 4 4 2 24 . 3 2 . Device 25 | 1 1 . 3 2 3 1 9 . 3 2 . Storage 3 | . 1 . 1 1 . . . . . . . Processor 4 | . . . . . . . 4 . . . . Hackware 3 | . . . . . . . 3 . . . . Protection 14 | . . . 3 1 1 1 8 . . . . Artifact . | . . . . . . . . . . . . Weapon 31 | . 3 2 8 1 2 1 12 . 2 . . Energy Gun 1 | . . 1 . . . . . . . . . Energy Cannon 8 | . 1 . 2 . . . 3 . 2 . . Ballistic Gun 7 | . 2 . 1 1 . . 3 . . . . Ballistic Cannon 3 | . . . 2 . . . 1 . . . . Launcher 7 | . . 1 3 . . . 3 . . . . Special Weapon 1 | . . . . . . 1 . . . . . Impact Weapon . | . . . . . . . . . . . . Slashing Weapon 2 | . . . . . 1 . 1 . . . . Piercing Weapon . | . . . . . . . . . . . . Special Melee Weapon 2 | . . . . . 1 . 1 . . . . Unidentified Prototypes 10 | . . . 1 1 . 1 6 . 1 . . Parts Lost 30 | . 2 . 2 . . . 19 . 3 1 3 Power 6 | . 1 . . . . . 3 . 1 1 . Propulsion 6 | . 1 . 1 . . . 3 . . . 1 Utility 11 | . . . . . . . 8 . 2 . 1 Weapon 7 | . . . 1 . . . 5 . . . 1 Highest Loss Streak 5 | . 2 . 1 . . . 5 . 2 1 2 To Critical Strikes . | . . . . . . . . . . . . Average Backups 17 | 6 15 20 19 19 19 18 17 15 17 15 14 Power . | 1 . . 1 1 1 . 1 1 . . . Propulsion 4 | 4 6 8 6 6 6 5 3 4 2 2 1 Utility 6 | . 2 4 5 6 5 6 8 8 9 8 8 Weapon 4 | 1 5 7 6 6 6 4 2 . 2 3 3 Tool/Special . | . . . . . . . . . . . . Unused Backups 61 | . 12 . 12 7 2 7 7 . 4 . 10 Power 4 | . 2 . . 1 . . . . 1 . . Propulsion 17 | . 5 . 2 2 . 1 5 . 1 . 1 Utility 23 | . 3 . 4 3 2 3 1 . 2 . 5 Weapon 14 | . 1 . 6 1 . 3 1 . . . 2 Tool/Special 3 | . 1 . . . . . . . . . 2 Average Slot Usage (%) 94 | . 99 100 99 100 100 90 93 93 91 92 91 Engine 4 | . 3 . . 7 11 10 4 . . 1 6 Core 4 | . 10 14 11 3 . . 1 6 2 . . Treads 9 | . 21 14 11 11 11 10 5 6 6 6 6 Wheel 14 | . 1 14 21 22 22 21 12 6 6 6 6 Device 13 | . 14 14 13 11 11 10 14 13 14 26 26 Storage 9 | . 14 14 11 11 11 10 6 6 6 6 6 Processor 3 | . . . . . . . 12 6 6 6 6 Hackware 3 | . . . . . . . 10 13 11 6 6 Protection 7 | . . . 7 11 11 10 7 13 11 6 5 Energy Cannon 6 | . 12 4 9 11 10 1 3 . 12 13 13 Ballistic Gun 2 | . 12 14 2 . . . 3 . . . . Ballistic Cannon 2 | . . . 9 11 10 . . 6 . . . Special Weapon 1 | . . . . . . 4 2 . . . . Slashing Weapon 3 | . . . . . . 5 4 6 5 2 3 Special Melee Weapon 1 | . . . . . . 4 . . . . . Peak Build Rating 90 | 7 12 14 23 24 25 35 85 85 90 88 85 Average Rating 41 | 6 9 12 20 21 23 27 63 84 84 87 83 On Entrance 39 | 6 7 12 13 21 24 22 33 77 85 83 85 Avg Prop Armor Cover (%) 8 | . 11 11 8 8 7 8 7 6 6 7 8 Naked Turns 78 | . . . . . . 78 . . . . . Heaviest Build 92 | 12 51 51 62 61 62 69 88 92 92 91 90 Greatest Support 48 | 20 40 12 24 24 24 36 48 28 28 28 28 Greatest Overweight (x) 5 | . 4 4 5 2 2 2 3 3 3 3 3 Average Overweight (x) 2 | . 1 4 2 2 2 1 2 3 2 3 2 Largest Inventory Capacity 20 | 8 20 20 20 20 20 20 20 20 20 20 20 Average Capacity 19 | 8 16 20 20 20 20 19 20 20 20 20 20 Most Carried 20 | 8 20 20 20 20 20 20 20 19 20 18 17 Average Carried 18 | 6 15 19 19 19 19 18 19 18 19 17 16 Final Capacity 20 | 8 20 20 20 20 20 20 20 20 20 20 20 Final Carried 20 | 8 20 20 20 20 20 20 19 19 19 17 14 Class Distribution -------------------- 66% | Mutant 19% | Hacker-Mutant 6% | Assassin 3% | Tank Dominant Class ---------------- Mutant | -10/Materials Mutant | -10/Mines Mutant | -9/Materials Mutant | -9/Storage Mutant | -9/Recycling Mutant | -9/Scraptown Hacker-Mutant | -6/Factory Hacker-Mutant | -6/Waste Hacker-Mutant | -6/Factory Tank | -6/Lower Caves Mutant | -6/Lower Caves Resources | -11 -10 -10 -9 -9 -9 -9 -6 -6 -6 -6 -6 ----------- Run | Yrd Mat Min Mat Sto Rec Scr Fac Was Fac Low Low Matter Collected 3391 | 214 234 81 1020 268 52 189 916 . 244 173 . Remotely . | . . . . . . . . . . . . Salvage Created 7187 | 115 789 169 1572 617 218 . 2365 . 771 291 280 Parts 339 | 4 43 14 96 39 16 . 76 . 25 17 9 Haulers Intercepted 12 | . 2 . 4 4 . . 2 . . . . Recyclers Shooed 7 | 1 2 . 2 . 1 . 1 . . . . Parts Field Recycled . | . . . . . . . . . . . . Retrieved Matter . | . . . . . . . . . . . . Parts Self-Destructed 14 | . . . . . . . . . . 11 3 Prevented 9 | . . . . . . . . . . 4 5 Parts Restored . | . . . . . . . . . . . . Kills | -11 -10 -10 -9 -9 -9 -9 -6 -6 -6 -6 -6 ------- Run | Yrd Mat Min Mat Sto Rec Scr Fac Was Fac Low Low Combat Hostiles Destroyed 118 | . 15 6 32 11 2 . 31 . 10 6 5 Guns 10 | . 2 3 1 . . . 4 . . . . Cannons 74 | . 13 . 23 11 2 . 11 . 9 3 2 AOE 23 | . . 3 8 . . . 7 . 1 2 2 Classes Destroyed 17 | 2 4 1 5 1 . . 3 . . 1 . Worker 13 | . . . 6 . . . 6 . 1 . . Builder 4 | . . 1 1 1 . . 1 . . . . Tunneler 4 | 1 1 . 2 . . . . . . . . Hauler 12 | . 2 . 4 4 . . 2 . . . . Recycler 8 | 1 1 . 1 . 2 . 2 . 1 . . Mechanic 2 | . . . . 1 . . 1 . . . . Operator 2 | . 1 . . 1 . . . . . . . Watcher 1 | . . . 1 . . . . . . . . Swarmer 14 | . 3 3 3 . . . . . . 3 2 Grunt 63 | . 12 3 15 7 . . 17 . 8 . 1 Brawler 1 | . . . 1 . . . . . . . . Duelist 7 | . . . 3 1 . . 1 . 1 . 1 Sentry 22 | . . . 10 3 2 . 6 . . . 1 Hunter 4 | . . . . . . . 2 . . 2 . Programmer 5 | . . . . . . . 4 . 1 . . Heavy 1 | . . . . . . . 1 . . . . Behemoth 1 | . . . . . . . . . . 1 . Best Kill Streak 8 | 2 6 4 8 4 4 . 5 . 4 3 4 Combat Bots Only 7 | . 5 3 7 2 2 . 3 . 3 3 4 Max Kills in Single Turn 6 | 1 1 3 6 1 1 . 3 . 1 2 2 Gunslinging 1 | . . 1 . . . . . . . . . Exploded 3 | . . 2 2 . . . 3 . 1 2 1 Melee . | . . . . . . . . . . . . Uniques/NPCs Destroyed . | . . . . . . . . . . . . Combat | -11 -10 -10 -9 -9 -9 -9 -6 -6 -6 -6 -6 -------- Run | Yrd Mat Min Mat Sto Rec Scr Fac Was Fac Low Low Hostile Shots Fired 758 | . 66 21 112 23 6 . 362 . 81 29 58 Missed 227 | . 16 8 32 11 3 . 104 . 21 11 21 Hits 531 | . 50 13 80 12 3 . 258 . 60 18 37 Melee 9 | . . . . 1 . . 4 . . . 4 Projectile 522 | . 50 13 80 11 3 . 254 . 60 18 33 Critical Strikes 20 | . . . 4 . . . 15 . 1 . . Part Disruptions 2 | . . . . . . . . . . 2 . Damage Taken 8438 | . 559 120 1048 196 43 . 4475 . 922 438 637 Core 1099 | . 77 25 102 30 14 . 588 . 82 91 90 Absorbed by Shields 13 | . . . . . . . 13 . . . . Redirected to Shielding 10 | . . . . . . . 10 . . . . Ignored by Resistances 388 | . . . . . . . 115 . 192 40 41 Regen/Repaired (Parts) 170 | . 16 . 11 75 . . 68 . . . . Core Remaining (%) 74 | 100 . 59 . . . 63 . . . . . Volleys Fired 406 | 4 49 7 101 44 9 . 127 . 39 15 11 Largest 3 | 2 2 2 2 2 1 . 3 . 3 2 3 Hottest 223 | 70 110 70 105 105 68 . 223 . 210 210 113 Shots Fired 704 | 8 98 14 184 77 9 . 197 . 75 20 22 Gun 171 | 8 53 12 15 . . . 83 . . . . Cannon 475 | . 45 . 159 77 9 . 80 . 72 15 18 Launcher 34 | . . 2 10 . . . 10 . 3 5 4 Special 24 | . . . . . . . 24 . . . . Kinetic 282 | 4 33 7 104 33 . . 101 . . . . Thermal 364 | 4 65 5 70 44 9 . 62 . 72 15 18 Explosive 5 | . . 2 3 . . . . . . . . Electromagnetic 29 | . . . 7 . . . 10 . 3 5 4 Impact 24 | . . . . . . . 24 . . . . Robot Hit Streak 20 | 5 7 5 10 20 4 . 20 . 7 8 10 Robot Miss Streak 3 | 1 2 1 3 2 1 . 3 . 2 2 2 Penetration Max 1 | . . . . . . . 1 . . . . Secondary Targets 3 | . 2 1 . . . . . . . . . Max Gunslinging Chain 1 | . 1 1 . . . . . . . . . Shots Hit Robots 483 | 6 61 9 123 49 7 1 147 . 53 12 15 Core Hits 218 | 3 26 6 65 19 4 . 53 . 24 11 7 Critical Kills 8 | . . . . 1 . . 6 . . 1 . Critical Parts Destroyed 4 | . . . . . . . 4 . . . . Critical Strikes 23 | . 1 1 5 2 . . 13 . . 1 . Burn 2 | . 1 1 . . . . . . . . . Meltdown 5 | . . . . 1 . . 3 . . 1 . Destroy 2 | . . . . . . . 2 . . . . Blast 8 | . . . 5 1 . . 2 . . . . Smash 5 | . . . . . . . 5 . . . . Sever 1 | . . . . . . . 1 . . . . Melee Attacks 22 | . . . . . . 1 20 . 1 . . Impact . | . . . . . . . . . . . . Slashing 21 | . . . . . . . 20 . 1 . . Piercing . | . . . . . . . . . . . . Sneak Attacks 3 | . . . . . . 1 2 . . . . Combat Hostiles . | . . . . . . . . . . . . Follow-up Attacks . | . . . . . . . . . . . . Damage Inflicted 15624 | 65 956 356 3244 1111 141 . 6341 . 1837 741 832 Guns 1957 | 65 328 105 134 . . . 1325 . . . . Cannons 8610 | . 612 . 2419 1111 141 . 1763 . 1698 481 385 Explosions 3284 | . . 251 683 . . . 1504 . 139 260 447 Melee 188 | . . . . . . . 188 . . . . Ramming 24 | . 16 . 8 . . . . . . . . Kinetic 4214 | 17 178 68 1682 560 . . 1709 . . . . Thermal 7240 | 48 762 37 871 551 141 . 2152 . 1698 521 459 Explosive 645 | . . 251 394 . . . . . . . . Electromagnetic 1752 | . . . 289 . . . 731 . 139 220 373 Impact 1561 | . . . . . . . 1561 . . . . Slashing 188 | . . . . . . . 188 . . . . Piercing . | . . . . . . . . . . . . Highest Corruption 9 | . . . . 1 2 . 5 5 9 9 9 Average Corruption 4 | . . . . 1 1 . 3 5 6 9 9 Corruption Purged . | . . . . . . . . . . . . Corruption Blocked . | . . . . . . . . . . . . Effects 129 | . . . . 5 9 . 50 2 31 24 8 Message Errors 33 | . . . . 3 4 . 14 1 5 3 3 Matter Fused 29 | . . . . 1 2 . 10 . 5 8 3 Heat Flow Errors 16 | . . . . 1 . . 5 . 6 4 . Energy Discharges 18 | . . . . . 1 . 7 1 6 2 1 Parts Rejected 2 | . . . . . . . 1 . 1 . . Parts Fused 3 | . . . . . 1 . . . . 2 . Data Loss (minor) 8 | . . . . . . . 4 . 3 1 . Data Loss (major) 7 | . . . . . 1 . 5 . 1 . . Misfires 7 | . . . . . . . 3 . 2 2 . Alerts 4 | . . . . . . . . . 1 2 1 Weapon Failures 2 | . . . . . . . 1 . 1 . . Overload Shots 4 | . . . . . . . . . 2 2 . Effects 2 | . . . . . . . . . 1 1 . Energy Bleed 2 | . . . . . . . . . 1 1 . Overflow Damage 722 | . . 14 46 . . . 598 . 64 . . Projectiles 567 | . . . 5 . . . 498 . 64 . . Explosions 155 | . . 14 41 . . . 100 . . . . Melee . | . . . . . . . . . . . . Knockbacks 15 | . . . 4 5 . . 6 . . . . Impact 4 | . . . . . . . 4 . . . . Kinetic 10 | . . . 4 5 . . 1 . . . . Secondary 1 | . . . . . . . 1 . . . . Self-Inflicted Damage 4 | . . . 4 . . . . . . . . Shots . | . . . . . . . . . . . . Rammed 7 | . 6 . 1 . . . . . . . . Targets Rammed 7 | . 6 . 1 . . . . . . . . Kicked . | . . . . . . . . . . . . Crushed . | . . . . . . . . . . . . Highest Temperature 433 | 60 229 3 199 255 . . 433 . 255 273 . Average Temperature 77 | 30 74 3 73 36 . . 107 . 89 99 . Received Heat Transfer 2860 | . 258 27 492 42 27 . 1498 . 417 48 51 Effects 6 | . 1 . . . . . 5 . . . . Energy Bleed 2 | . 1 . . . . . 1 . . . . Interference 3 | . . . . . . . 3 . . . . Short Circuit 1 | . . . . . . . 1 . . . . Siege Activations . | . . . . . . . . . . . . Martial Activations . | . . . . . . . . . . . . Shielding Activations . | . . . . . . . . . . . . Robots Disrupted . | . . . . . . . . . . . . Combat Hostiles . | . . . . . . . . . . . . Robots Corrupted 9 | . . . . . . . 8 . . . 1 Combat Hostiles 8 | . . . . . . . 7 . . . 1 Parts Fried 14 | . . . 1 . . . 12 . . 1 . Impact Corruptions 13 | . . . . . . . 13 . . . . Robots Melted 5 | . . . . 1 . . 3 . . 1 . Combat Hostiles 3 | . . . . . . . 2 . . 1 . Parts Melted 31 | . 4 1 1 4 . . 7 . 10 3 1 Heat Transferred 11757 | 148 1813 185 1813 999 259 . 2600 . 2580 660 700 Parts Sabotaged . | . . . . . . . . . . . . Parts Stolen . | . . . . . . . . . . . . Parts Stripped . | . . . . . . . . . . . . Power Chain Reactions 5 | . . . 2 . . . 1 . . 1 1 Alert | -11 -10 -10 -9 -9 -9 -9 -6 -6 -6 -6 -6 ------- Run | Yrd Mat Min Mat Sto Rec Scr Fac Was Fac Low Low Maximum Alert Level 3 | . 1 . 3 2 . . 2 1 . . . Low Security (%) 72 | 100 76 100 58 . 100 . 74 75 100 . . Level 1 18 | . 23 . 4 96 . . 19 24 . . . Level 2 7 | . . . 26 3 . . 5 . . . . Level 3 2 | . . . 10 . . . . . . . . Level 4 . | . . . . . . . . . . . . Level 5 . | . . . . . . . . . . . . High Security . | . . . . . . . . . . . . Max Security . | . . . . . . . . . . . . Peak Influence 730 | 10 244 92 730 407 152 . 607 211 181 . . Initial 298 | . . 27 16 298 142 . . 211 91 . . Average 153 | 4 112 38 271 330 115 . 120 173 50 . . Influence Increases 4906 | 10 556 194 1228 410 260 . 1417 . 441 140 250 Destroy 0b10 Robot/C 2380 | . 300 140 640 220 40 . 620 . 200 120 100 Destroy 0b10 Robot/NC 230 | 10 25 5 75 35 10 . 60 . 10 . . Destroy Leader 576 | . 64 20 200 68 . . 164 . 40 20 . Allied During Kill 1 | . . 1 . . . . . . . . . Successful Hack 220 | . 31 . 53 4 30 . 61 . 41 . . Select Force Hacks 210 | . 30 . . . 180 . . . . . . Disable Machine 585 | . 15 15 105 60 . . 315 . 75 . . Destroy Structure 179 | . 1 13 50 8 . . 77 . 30 . . Partial Spotted 15 | . 15 . . . . . . . . . . Lose Combat Pursuer 510 | . 75 . 105 15 . . 120 . 45 . 150 Influence Decreases 4746 | 10 486 221 564 751 534 92 812 474 429 283 90 Entered New Map 1282 | . . 43 27 409 224 92 . 394 40 53 . Time Decay 2996 | 10 466 158 517 342 310 . 484 80 359 210 60 Lost Part 287 | . 20 . 20 . . . 177 . 30 10 30 Lost Ally 30 | . . 20 . . . . . . . 10 . Purge Threat 151 | . . . . . . . 151 . . . . Squads Dispatched 31 | . 3 1 3 1 . . 18 . 4 . 1 Investigation 8 | . 2 . . . . . 5 . 1 . . Extermination 6 | . . . . . . . 4 . 2 . . Reinforcement 8 | . 1 . 3 1 . . 2 . 1 . . Assault 3 | . . 1 . . . . 1 . . . 1 Garrison 6 | . . . . . . . 6 . . . . Intercept . | . . . . . . . . . . . . Searches Triggered . | . . . . . . . . . . . . Construction Impeded 2 | . . . 1 . . . . . 1 . . Haulers Reinforced 1 | . . . . . . . 1 . . . . Active Scanning Responses . | . . . . . . . . . . . . Cargo Convoy Interrupts 1 | . . . . . . . 1 . . . . Stealth | -11 -10 -10 -9 -9 -9 -9 -6 -6 -6 -6 -6 --------- Run | Yrd Mat Min Mat Sto Rec Scr Fac Was Fac Low Low Distress Signals 14 | . 5 . 6 2 . . 1 . . . . Communications Jammed . | . . . . . . . . . . . . Distress Signals . | . . . . . . . . . . . . Times Spotted 202 | . 30 9 51 19 2 . 46 4 12 6 23 Peak Tracking Total 10 | . 9 4 7 4 2 . 4 4 4 2 10 Tactical Retreats 20 | . 3 . 6 1 . . 5 . 1 . 4 Traps | -11 -10 -10 -9 -9 -9 -9 -6 -6 -6 -6 -6 ------- Run | Yrd Mat Min Mat Sto Rec Scr Fac Was Fac Low Low Traps Triggered 7 | . 1 . . 1 . . 4 . . 1 . Indirectly . | . . . . . . . . . . . . Trap Hack Attempts . | . . . . . . . . . . . . Triggered . | . . . . . . . . . . . . Disarmed 4 | . . . 4 . . . . . . . . Reprogrammed . | . . . . . . . . . . . . Reused . | . . . . . . . . . . . . Traps Extracted . | . . . . . . . . . . . . Installed . | . . . . . . . . . . . . Triggered . | . . . . . . . . . . . . Most Traps Carried 1 | . . . . . . 1 1 1 1 1 1 Machines | -11 -10 -10 -9 -9 -9 -9 -6 -6 -6 -6 -6 ---------- Run | Yrd Mat Min Mat Sto Rec Scr Fac Was Fac Low Low Machines Disabled 39 | . 1 1 7 4 . . 21 . 5 . . Max in Single Turn 10 | . 1 1 1 1 . . 10 . 1 . . Garrison Access 2 | . . . . . . . 1 . 1 . . Machines Repaired . | . . . . . . . . . . . . Machines Dismantled . | . . . . . . . . . . . . Machines Sabotaged . | . . . . . . . . . . . . Overloaded Fab Kills . | . . . . . . . . . . . . Hacking | -11 -10 -10 -9 -9 -9 -9 -6 -6 -6 -6 -6 --------- Run | Yrd Mat Min Mat Sto Rec Scr Fac Was Fac Low Low Machines Accessed 69 | . 8 . 14 7 12 4 19 . 5 . . Terminals 38 | . 6 . 10 6 6 . 8 . 2 . . Fabricators 2 | . . . . . . . 2 . . . . Repair Stations 4 | . 1 . 1 1 . . 1 . . . . Recycling Units 13 | . 1 . 1 . 6 . 4 . 1 . . Scanalyzers 5 | . . . 2 . . . 2 . 1 . . Garrison Access 3 | . . . . . . . 2 . 1 . . Total Hacks 198 | . 23 . 39 11 24 31 56 . 14 . . Successful 113 | . 12 . 18 7 11 31 28 . 6 . . Failed 82 | . 11 . 20 4 12 . 27 . 8 . . Catastrophic 16 | . 3 . 4 1 3 . 4 . 1 . . Database Lockouts 3 | . . . 1 . 1 . 1 . . . . Manual 74 | . 11 . 21 2 13 . 24 . 3 . . Terminals 115 | . 19 . 29 9 16 . 35 . 7 . . Fabricators 5 | . . . . . . . 5 . . . . Repair Stations 15 | . 2 . 5 2 . . 6 . . . . Recycling Units 17 | . 2 . 2 . 8 . 4 . 1 . . Scanalyzers 9 | . . . 3 . . . 3 . 3 . . Garrison Access 6 | . . . . . . . 3 . 3 . . Terminal Hacks 78 | . 9 . 13 5 5 31 13 . 2 . . Record 31 | . . . . . . 31 . . . . . Part Schematic 5 | . . . . . 4 . 1 . . . . Robot Analysis 1 | . . . . . . . 1 . . . . Prototype ID Bank 14 | . 5 . 4 1 . . 4 . . . . Open Door 3 | . . . . 3 . . . . . . . Branch Access Points 2 | . . . 1 . . . . . 1 . . Terminal Index 2 | . . . 1 . . . 1 . . . . Recycling Unit Index 2 | . . . . . . . 1 . 1 . . Alert Level 2 | . . . 1 . . . 1 . . . . Unreport Threat 2 | . . . . . . . 2 . . . . Locate Traps 6 | . 3 . 3 . . . . . . . . Disarm Traps 1 | . . . 1 . . . . . . . . Hauler Manifests 6 | . 1 . 2 1 1 . 1 . . . . Registered Components 1 | . . . . . . . 1 . . . . Fabricator Hacks 2 | . . . . . . . 2 . . . . Load Schematic 1 | . . . . . . . 1 . . . . Build 1 | . . . . . . . 1 . . . . Repair Station Hacks 8 | . 2 . 2 2 . . 2 . . . . Scan Component 4 | . 1 . 1 1 . . 1 . . . . Repair 4 | . 1 . 1 1 . . 1 . . . . Recycling Unit Hacks 2 | . . . 1 . . . 1 . . . . Retrieve Matter 2 | . . . 1 . . . 1 . . . . Scanalyzer 5 | . . . 1 . . . 2 . 2 . . Insert Component 2 | . . . 1 . . . 1 . . . . Retrieve Study 3 | . . . . . . . 1 . 2 . . Garrison Access Hacks 2 | . . . . . . . 1 . 1 . . Seal Access 2 | . . . . . . . 1 . 1 . . Unauthorized Hacks 16 | . 1 . 1 . 6 . 7 . 1 . . Terminals 4 | . . . 1 . . . 3 . . . . Botnet 2 | . . . . . . . 2 . . . . Operators 2 | . . . 1 . . . 1 . . . . Fabricators 1 | . . . . . . . 1 . . . . Haulers 1 | . . . . . . . 1 . . . . Repair Stations . | . . . . . . . . . . . . Recycling Units 11 | . 1 . . . 6 . 3 . 1 . . Tunnel 7 | . 1 . . . 6 . . . . . . Fedlink 4 | . . . . . . . 3 . 1 . . Scanalyzers . | . . . . . . . . . . . . Garrison Access . | . . . . . . . . . . . . Data Cores Recovered 1 | . . . . 1 . . . . . . . Used 1 | . . . . 1 . . . . . . . Hacking Detections 50 | . 8 . 13 5 6 . 14 . 4 . . Full Trace Events 7 | . 1 . . . 4 . 2 . . . . Feedback Events 1 | . . . . . 1 . . . . . . Corruption 1 | . . . . . 1 . . . . . . Feedback Blocked . | . . . . . . . . . . . . Robot Schematics Acquired . | . . . . . . . . . . . . Robots Built . | . . . . . . . . . . . . Authchips . | . . . . . . . . . . . . Time . | . . . . . . . . . . . . Total Robot Build Rating . | . . . . . . . . . . . . Part Schematics Acquired 5 | . . . . . 4 . 1 . . . . Parts Built 2 | . . . . . . . 2 . . . . Authchips . | . . . . . . . . . . . . Time 53 | . . . . . . . 53 . . . . Total Part Build Rating 12 | . . . . . . . 12 . . . . Part Studies Acquired 3 | . . . . . . . 1 . 2 . . Parts Repaired 4 | . 1 . 1 1 . . 1 . . . . Time 194 | . 38 . 108 32 . . 16 . . . . Parts Recycled . | . . . . . . . . . . . . Recycled Matter . | . . . . . . . . . . . . Retrieved Matter 319 | . . . 120 . . . 199 . . . . Retrieved Components . | . . . . . . . . . . . . Parts Scanalyzed 1 | . . . 1 . . . . . . . . Part Schematics Acquired . | . . . . . . . . . . . . Parts Damaged 1 | . . . 1 . . . . . . . . Bothacking | -11 -10 -10 -9 -9 -9 -9 -6 -6 -6 -6 -6 ------------ Run | Yrd Mat Min Mat Sto Rec Scr Fac Was Fac Low Low Used RIF Installer . | . . . . . . . . . . . . Robots Hacked 1 | . . . . . . 1 . . . . . Non-combat . | . . . . . . . . . . . . Combat 1 | . . . . . . 1 . . . . . Robot Hacks Applied 1 | . . . . . . 1 . . . . . parse_system 1 | . . . . . . 1 . . . . . Relay Couplers Released . | . . . . . . . . . . . . Fabnet Peak Effective % . | . . . . . . . . . . . . Robots Rewired . | . . . . . . . . . . . . Allies Hacked . | . . . . . . . . . . . . Hacks Repelled . | . . . . . . . . . . . . Allies | -11 -10 -10 -9 -9 -9 -9 -6 -6 -6 -6 -6 -------- Run | Yrd Mat Min Mat Sto Rec Scr Fac Was Fac Low Low Total Allies 1 | . . 1 . . . . . . . . . Largest Group 1 | . . 1 . . . . . . . . . Highest-Rated Group 31 | . . 31 . . . . . . . . . Highest-Rated Ally 31 | . . 31 . . . . . . . . . Total Orders 5 | . . . . . . . . . . 5 . EXPLORE 3 | . . . . . . . . . . 3 . RETURN 2 | . . . . . . . . . . 2 . Ally Attacks 5 | . . 5 . . . . . . . . . Total Damage 107 | . . 107 . . . . . . . . . Kills 1 | . . 1 . . . . . . . . . Allies Corrupted . | . . . . . . . . . . . . Allies Melted . | . . . . . . . . . . . . Intel | -11 -10 -10 -9 -9 -9 -9 -6 -6 -6 -6 -6 ------- Run | Yrd Mat Min Mat Sto Rec Scr Fac Was Fac Low Low Active Infowar (turns) 6211 | 16 256 . 462 . . 1080 2376 . 1120 623 278 Optics 2375 | . . . . . . . 2375 . . . . Sensors 2139 | . . . . . . . 1800 . 339 . . IFF 1682 | . . . . . . . . . 781 623 278 Terrain 1046 | . . . . . . . 1046 . . . . Structural 3014 | . . . . . . 1080 1934 . . . . Seismic 734 | 16 256 . 462 . . . . . . . . ECM 1 | . . . . . . . 1 . . . . Robot Analysis Total 1 | . . . . . . . 1 . . . . Derelict Logs Recovered 2 | . . 1 . . . . . . . 1 . Drone Launches 4 | . . . . . . . . . . 3 1 Drone Recoveries 2 | . . . . . . . . . . 2 . Exploration | -11 -10 -10 -9 -9 -9 -9 -6 -6 -6 -6 -6 ------------- Run | Yrd Mat Min Mat Sto Rec Scr Fac Was Fac Low Low Turns Passed 13960 | 33 1504 420 2018 764 699 3044 3170 166 1241 623 278 Spaces Moved 9279 | 16 647 262 1310 474 549 2556 2080 107 750 358 170 Core 151 | . . . . . . 151 . . . . . Treads 430 | . 415 . . . . 15 . . . . . Legs 163 | 16 147 . . . . . . . . . . Wheels 8535 | . 85 262 1310 474 549 2390 2080 107 750 358 170 Hover . | . . . . . . . . . . . . Flight . | . . . . . . . . . . . . Fastest Speed 50 | 120 120 150 120 120 120 50 95 145 130 145 130 Average Speed 127 | 120 188 150 120 120 120 115 118 145 142 145 140 Slowest Speed 240 | 120 240 150 165 120 120 240 145 145 145 145 145 Overloaded Moves . | . . . . . . . . . . . . Propulsion Burnouts . | . . . . . . . . . . . . Robots Hopped . | . . . . . . . . . . . . Potential Cave-ins . | . . . . . . . . . . . . Cave-ins Triggered . | . . . . . . . . . . . . Exploration Rate (%) 65 | 3 99 74 96 85 92 92 57 74 19 61 31 Regions Visited 11 Branch Regions 6 Pre-discovered Areas 14 | . 1 . . . 6 6 1 . . . . Known Exits Taken 3 | . . . 1 . . . . . 1 1 . Unknown Exits Taken 6 | 1 1 1 . 1 1 1 . . . . . Scrap Searched 7 | . . 1 . . . 4 . . . 2 . Spaces Dug 30 | . . . 13 . . . 15 . 2 . . Terrain Destroyed 214 | . . 16 51 4 . . 83 . 44 8 8 Melee 14 | . . . . . . . 14 . . . . Projectile 57 | . . . 10 4 . . 19 . 15 3 6 AOE 143 | . . 16 41 . . . 50 . 29 5 2 Terrain Rammed . | . . . . . . . . . . . . Walls Destroyed . | . . . . . . . . . . . . Machines Disabled . | . . . . . . . . . . . . Actions | -11 -10 -10 -9 -9 -9 -9 -6 -6 -6 -6 -6 --------- Run | Yrd Mat Min Mat Sto Rec Scr Fac Was Fac Low Low Total 10721 | 22 827 274 1581 604 583 2654 2580 118 851 439 188 Wait 490 | . 69 . 76 46 9 3 189 10 27 57 4 Move 9269 | 15 646 261 1309 473 548 2555 2080 106 749 357 170 Hop . | . . . . . . . . . . . . Pick Up 154 | 2 25 1 28 12 3 32 41 1 9 . . Fast Attach 40 | 1 4 . 2 2 . 10 17 . 4 . . Attach 46 | . 4 . 6 1 . 3 24 1 3 2 2 Detach 13 | . 2 . 2 . . 3 4 . 2 . . Swap 92 | . 9 4 22 7 7 3 26 . 6 7 1 Drop 165 | . 13 1 34 19 7 44 36 . 11 . . Fire 406 | 4 49 7 101 44 9 . 127 . 39 15 11 Melee 22 | . . . . . . 1 20 . 1 . . Ram 1 | . . . 1 . . . . . . . . Kick . | . . . . . . . . . . . . Crush 6 | . 6 . . . . . . . . . . Escape Stasis 16 | . . . . . . . 16 . . . . Rewire . | . . . . . . . . . . . . Trap . | . . . . . . . . . . . . Miscellaneous 1 | . . . . . . . . . . 1 . Route ------- -11/Scrapyard -10/Materials (discovered 5 exits: *Mat x3 / [*Min] / [*Sub]) -10/Mines (discovered 3 exits: *Mat / [*Exi] / [*Sub]) -9/Materials (discovered 6 exits: *Mat x3 / *Min x2 / *Sto) -9/Storage -9/Recycling (discovered 2 exits: [*Fac] / *Scr) -9/Scraptown (discovered 2 exits: *Fac x2) -6/Factory (discovered 6 exits: *Fac x4 / Low x2) -6/Waste -6/Factory (discovered 2 exits: *Low x2) -6/Lower Caves -6/Lower Caves (discovered 2 exits: Fac / Dat) History --------- Turn | Location | Event 13 | -11/Scrapyard | Discovered new exit (range 3) 34 | -11/Scrapyard | Entered Materials 134 | -10/Materials | Discovered new exit (range 16) 312 | -10/Materials | Build established: Mutant 614 | -10/Materials | Discovered new exit (range 16) 1108 | -10/Materials | Discovered new exit (range 16) 1180 | -10/Materials | Discovered new exit (range 9) 1358 | -10/Materials | Discovered new exit (range 16) 1466 | -10/Materials | Repaired Lgt. Nuclear Core? 1538 | -10/Materials | Entered Mines 1744 | -10/Mines | Learned 4 Materials zone layouts 1768 | -10/Mines | Found a damaged Exp. Sensor Array with a note attached 1773 | -10/Mines | Found Prototype Device 1788 | -10/Mines | Met a Derelict testing a Signal Generator 1820 | -10/Mines | Deemed a non-threat by the Exiles lab entrance 1820 | -10/Mines | Discovered new exit (range 5) 1864 | -10/Mines | Discovered new exit (range 9) 1918 | -10/Mines | Discovered new exit (range 12) 1958 | -10/Mines | Entered Materials 1958 | -9/Materials | Evolved 2 slots: Propulsion x1, Utility x1 1959 | -9/Materials | Identified exit to Materials 1959 | -9/Materials | Identified exit to Storage 1959 | -9/Materials | Identified Exp. Sensor Array 2047 | -9/Materials | Discovered new exit (range 16) 2348 | -9/Materials | Identified exit to Mines 2348 | -9/Materials | Central database locked down 2664 | -9/Materials | Repaired Faulty Exp. Sensor Array? 3101 | -9/Materials | Discovered exit to Materials (range 7) 3190 | -9/Materials | Destroyed 7 combat bots 3976 | -9/Materials | Entered Storage 4022 | -9/Storage | Repaired Arm. Wheel 4735 | -9/Storage | Used back door to open Recycling access 4735 | -9/Storage | Discovered new exit (range 5) 4740 | -9/Storage | Entered Recycling 5036 | -9/Recycling | Discovered new exit (range 16) 5335 | -9/Recycling | Scanned before Scraplab entrance 5427 | -9/Recycling | Entered Scraplab 5437 | -9/Recycling | Discovered new exit (range 2) 5439 | -9/Recycling | Entered Scraptown 5439 | -9/Scraptown | System corruption cleaned by C-Scrubber 5574 | -9/Scraptown | Learned location of Extension (-4) 5739 | -9/Scraptown | Discovered new exit (range 7) 5781 | -9/Scraptown | Visited Red Mages 5817 | -9/Scraptown | Visited Comm Corps 5995 | -9/Scraptown | Visited Cave Peace 6049 | -9/Scraptown | Visited Assassins FH 6065 | -9/Scraptown | Visited UFD Registry 6065 | -9/Scraptown | Registered with UFD as "Fissiondome" 6082 | -9/Scraptown | Visited SPCMW 6094 | -9/Scraptown | Visited Symbiants 6157 | -9/Scraptown | Visited Junk Repository 6211 | -9/Scraptown | Visited Junk Repository 6252 | -9/Scraptown | Visited Scrapoid Pod Storage 6278 | -9/Scraptown | Visited Cartography Club 6292 | -9/Scraptown | Visited Abandonware Association 6301 | -9/Scraptown | Learned abandonware demo "OVRCLOCK.EXE" 6306 | -9/Scraptown | Learned abandonware demo "REVENGE.EXE" 6306 | -9/Scraptown | Learned abandonware demo "KABOOM.EXE" 6326 | -9/Scraptown | Received an X-ray algorithm 6334 | -9/Scraptown | Visited Supply Room 6358 | -9/Scraptown | Visited Junk Cannon Lab 6381 | -9/Scraptown | Found Prototype Special Weapon 6381 | -9/Scraptown | Identified Junk Cannon 6527 | -9/Scraptown | Visited Supply Room 6559 | -9/Scraptown | Visited Curators Association 6578 | -9/Scraptown | Visited Science Guys 7279 | -9/Scraptown | Learned location of Mines (-9) 7279 | -9/Scraptown | Learned location of Lower Caves (-6) 7279 | -9/Scraptown | Learned location of Archives (-4) 7279 | -9/Scraptown | Learned 16 Materials zone layouts 7279 | -9/Scraptown | Learned 8 Factory zone layouts 7279 | -9/Scraptown | Learned 24 Factory zone layouts 7279 | -9/Scraptown | Learned 12 Research zone layouts 7279 | -9/Scraptown | Learned 8 Access zone layouts 7279 | -9/Scraptown | Learned Factory emergency access door positions 7279 | -9/Scraptown | Learned location of 2 exits from Factory 7279 | -9/Scraptown | Learned location of 3 exits from Lower Caves 7296 | -9/Scraptown | Found Deep Structural Scanner 8430 | -9/Scraptown | Met Optimus 8430 | -9/Scraptown | Accepted into 0bPrime 8475 | -9/Scraptown | Discovered new exit (range 9) 8483 | -9/Scraptown | Entered Factory 8483 | -6/Factory | Evolved 6 slots: Utility x5, Weapon x1 8484 | -6/Factory | Identified exit to Lower Caves 8484 | -6/Factory | Identified exit to Factory 8917 | -6/Factory | Build established: Assassin 9235 | -6/Factory | Discovered exit to Factory (range 8) 9281 | -6/Factory | Cargo convoy interrupted 9568 | -6/Factory | Garrison activated, responded to threat 9590 | -6/Factory | Found PL-3XN's Ring of Power 9599 | -6/Factory | Found Prototype Hackware 9601 | -6/Factory | Lost 5 parts (1p3u1w) 9608 | -6/Factory | Found Prototype Hackware 9613 | -6/Factory | Found Prototype Device 9613 | -6/Factory | Identified Exp. Thermal Shield 9619 | -6/Factory | Found Exp. Thermal Shield 9709 | -6/Factory | Identified Exp. System Shield 9931 | -6/Factory | Central database locked down 9991 | -6/Factory | Repaired Arm. Wheel+ 10050 | -6/Factory | Discovered exit to Factory (range 24) 10128 | -6/Factory | Build established: Hacker-Mutant 10325 | -6/Factory | Core integrity fell below 50% 10349 | -6/Factory | Garrison activated, responded to threat 10468 | -6/Factory | Spotted B-75 Beast 10635 | -6/Factory | Lost 4 parts (1p3u) 10880 | -6/Factory | Loaded intel: 8 recycling unit locations 11039 | -6/Factory | Identified Exp. Hacking Suite 11137 | -6/Factory | Fabricated Arm. Medium Treads (x2) 11430 | -6/Factory | Found Powered Armor 11493 | -6/Factory | Learned location of Protoforge (-2) 11633 | -6/Factory | First assault squad dispatched 11653 | -6/Factory | Sucked down chute 11653 | -6/Factory | Entered Waste 11714 | -6/Waste | Spotted C-40 Crusher 11735 | -6/Waste | Spotted C-40 Crusher 11750 | -6/Waste | Spotted C-40 Crusher 11758 | -6/Waste | Spotted C-40 Crusher 11760 | -6/Waste | Spotted C-40 Crusher 11776 | -6/Waste | Spotted C-40 Crusher 11787 | -6/Waste | Discovered new exit (range 16) 11819 | -6/Waste | Entered Factory 12080 | -6/Factory | Discovered exit to Lower Caves (range 7) 12690 | -6/Factory | Loaded intel: 8 recycling unit locations 13060 | -6/Factory | Entered Lower Caves 13061 | -6/Lower Caves | Identified exit to Lower Caves 13071 | -6/Lower Caves | Learned Factory stockpile data 13329 | -6/Lower Caves | Core integrity fell below 20% 13503 | -6/Lower Caves | Spotted B-75 Beast 13521 | -6/Lower Caves | Destroyed B-75 Beast 13567 | -6/Lower Caves | Activated DRS Beacon 13573 | -6/Lower Caves | Build established: Tank 13683 | -6/Lower Caves | Entered another Lower Caves area 13684 | -6/Lower Caves | Encountered a Warlord checkpoint 13684 | -6/Lower Caves | Identified exit to Data Miner 13832 | -6/Lower Caves | Attracted the attention of an 0b10 outpost 13961 | -6/Lower Caves | Destroyed by G-67 Veteran with Plasma Rifle Last Messages --------------- 13885_ Melted Carbon-fiber Leg. 13887_ L-41 Fighter heat short circuits Carbon-fiber Leg. 13887_ L-41 Fighter overheating. 13888_ L-41 Fighter heat spikes uncontrollably. 13888_ L-41 Fighter overheating. 13890_ Axe fries itself beyond repair. 13890_ L-41 Fighter overheating. 13892_ L-41 Fighter heat short circuits Imp. Deuterium Engine. 13916_ B-48 Gladiator sneak attacks. 13916_ L2-C6L(r) system corrupted by crushing effect. 13917_ L2-C6L(r) system terminally corrupted. 13919_ System corrupted: Matter fused (-7). 13936_ System corrupted: Energy discharge (-96). 13955_ Lyr. Medium Armor Plating destroyed. 13958_ Arm. Huge Wheel destroyed. 13961_ Mapping Drone released from Mapping Drone Bay. Map ----- +----------------------------------------------------+ | ??????????????????????????# ?"""?# %= ## ###### | | ??????????????????????? ## ## ## !%=# # | | ???????????????????????? [ # | | ???????????????????????? ### # | | ?????????????????????????????### ###?# # | | ???????????????????????????????# ##??## | | ???????????????????????????????# #???# | | ???????????????????????????????# #???# % | | ???????????????????????######??# ## ##???# # | | ??????????????????????## #?# #######????# # | | ??????????????????????# ## ##????# ???## | | ????????????????#??????????# #??? ###### | | ???????????????????????????### l ### #???? | | ????????????????????????????##g g #??? | | ???????????????????####?????# b #???# | | ??????????????????## ##?### ##???# | | ??????????????????# ### ### ##???# | | ????????????????#?# ### ##?# #????# | | ??????????????????# ## ##?# #???## | | ?????????????????## ssb #??# #????# | | ?????????????????# s #???####????? | | ?????????????????# ### s #### ##???????????? | | ????????#?????????????# #??# #????????????? | | ??????????????????????#n ##?# #????????????? | | ??????????????????????## ##?# ##????????????? | | ???????????????????????##@ #?? #?????????????? | | ??????????????????????? #? ?????????????? | | ??????????????????????### ##?? "????????????? | | ????????????????????????# ###??? ""????????????? | | ????????????????????????# #?????????????? ??????? | | ????????????????????????# #?????????????????????? | | ????????????????????????# ?????????????????????? | | ????????????????????????# ?????????????????????? | | ?????????????#?????????? ?????????????????????? | | ???????????????????????? ##????????????????????? | | ???????????????????????? #?????????????????????? | | ???????????????????????? ##?????????????????????? | | ???????????????????????? ???????????????????????? | | ???????????????????????? ???????????????????????? | | ???????????????????????? ?#?????????????????????? | | ????????????????????????# ???????????????????????? | | ?????????????????????????????????????????????????? | | ?????????????????????????????????????????????????? | | ?????????????????????????????????????????????????? | | ?????????????????????????????????????????????????? | | ?????????????????????????????????????????????????? | | ?????????????????????????????????????????????????? | | ?????????????????????????????????????????????????? | | ?????????????????????????????????????????????????? | | ?????????????????????????????????????????????????? | +----------------------------------------------------+ Best States ------------- Heat Dissipation 75 Coolant Potential 50 Energy Generation 21 Energy Capacity 310 Matter Stores 300 Matter Capacity 300 Sight Range 22 Robot Scan Range 16 Terrain Scan Range 20 Terrain Scan Density 10 Additional Mass Support 12 EM Shielding 4 Armor Coverage 625 Resistance: TH 30 Core Shielding 20 Weapon Cycling 15 Evasion (%) 55 Targeting Accuracy 14 Recoil Reduction 2 Offensive Hacking 16 Defensive Hacking 16 Item Schematics ----------------- Arm. Wheel | -9/Recycling | Hacked Imp. Treads | -9/Recycling | Hacked Lgt. Deuterium Engine | -9/Recycling | Hacked Mni. Grenade Launcher | -9/Recycling | Hacked Arm. Medium Treads | -6/Factory | Hacked Robot Schematics ------------------ None Fabricated ------------ Arm. Medium Treads | x2 | -6/Factory Repaired ---------- Lgt. Nuclear Core | 68% | -10/Materials Exp. Sensor Array | 62% | -9/Materials Arm. Wheel | 25% | -9/Storage Arm. Wheel | 32% | -6/Factory Studied --------- Arm. Wheel | -6/Factory | Hacked Arm. Medium Treads | -6/Factory | Hacked Fission Core | -6/Factory | Hacked Alien Tech Used ----------------- None Achievements -------------- None Challenges ------------ None Game ------ Seed SniperDeuteriumMegashotty Manual? 0 Play Time 02:53:08 Cumulative 561.8 hours Start 2025.11.15 @ 20:40:08 End 2025.11.15 @ 23:46:29 Sessions 1 Manual Loads 0 Difficulty Rogue Special Mode None Game No. 171 Rogue 132 Adventurer 0 Explorer 39 Win Type - Total 15 Types 12/1/1/1/0/0/0/0/0/0 Lore% 78 Gallery% 74 Achievement% 51 Wizard Run 0 Options --------- Layout 2 ASCII 1 Keyboard 1 Movement Arrows Keybinds 0 Fullscreen 1 Font 24/Smallcaps Map View 50x44 Zoom Use 0% Tactical HUD 1 Map Filters NONE Filters NONE Steam 1 RUN: eb7f62b1-9698-4ba6-ba46-1505909a7db6